[Event "III Menorca Open-A 2024"]
[Site "Ciutadella Menorca"]
[Date "2024.04.03"]
[Round "3.5"]
[White "Koelle, Tobias"]
[Black "Warmerdam, Max"]
[Result "1/2-1/2"]
[ECO "E16"]
[WhiteElo "2467"]
[BlackElo "2628"]
[Annotator "TA"]
[PlyCount "58"]
[EventDate "2024.04.02"]
[EventType "swiss"]
[EventCountry "ESP"]
[SourceTitle "playchess.com"]
[Source "ChessBase"]
[SourceQuality "1"]
[TimeControl "5400+30"]

{[%evp 16,58,33,15,29,18,23,16,31,19,29,20,16,12,26,34,26,26,14,14,19,18,22,12,13,12,6,9,14,12,17,10,10,10,10,10,24,12,33,8,18,8,9,0,47]} 1. d4 {[%emt 0:00:47]} Nf6 {[%emt 0:03:21]} 2. c4 {[%emt 0:00:03]} e6 {[%emt 0:00:06]} 3. Nf3 {[%emt 0:00:06]} b6 {[%emt 0:00:03]} 4. g3 {[%emt 0:00:08]} Bb7 {[%emt 0:00:05]} 5. Bg2 {[%emt 0:00:06]} Bb4+ {[%emt 0:00:06]} 6. Bd2 {[%emt 0:00:06]} c5 {[%emt 0:00:05]} 7. Bxb4 {[%emt 0:04:14]} cxb4 {[%emt 0:01:01]} 8. O-O {[%emt 0:00:24]} O-O {[%emt 0:00:05]} 9. Nbd2 {[%emt 0:02:28]} Qc7 {[%emt 0:03:05]} 10. Qb3 {[%emt 0:07:03]} a5 {[%emt 0:02:54]} 11. a3 {[%emt 0:00:56][%cal Ba2a3,Ba3b4][%mdl 32]} Na6 {[%emt 0:02:05]} 12. Ne5 {[%emt 0:13:02]} Bxg2 {[%emt 0:07:41]} 13. Kxg2 {[%emt 0:00:12]} d6 {[%emt 0:07:49]} 14. Nd3 {[%emt 0:00:58][%cal Ra3b4]} e5 {[%emt 0:00:18][%cal Be6e5,Be5e4][%mdl 32]} 15. axb4 {[%emt 0:04:57]} e4 {[%emt 0:03:26]} 16. b5 {[%emt 0:01:30]} exd3 {[%emt 0:00:10]} 17. bxa6 {[%emt 0:00:05]} dxe2 {[%emt 0:00:52]} 18. Rfe1 {[%emt 0:00:13]} Rfe8 {[%emt 0:12:07]} 19. Qf3 {[%emt 0:10:51]} Rxa6 {[%emt 0:00:33]} 20. Rxe2 {[%emt 0:01:17]} Rxe2 {[%emt 0:03:51]} 21. Qxe2 {[%emt 0:01:54]} Ra8 {[%emt 0:15:18]} 22. Ne4 {[%emt 0:03:36]} Qb7 {[%emt 0:01:56]} 23. d5 {[%emt 0:00:43] [#] Strongly threatening Nxf6+.} Nxe4 {[%emt 0:05:56]} 24. Qxe4 $11 {[%emt 0:01:25][%mdl 4096] Endgame. KQR-KQR} h6 {[%emt 0:00:04]} 25. Qf4 {[%emt 0:09:17]} Qc7 {[%emt 0:02:37]} 26. Re1 {[%emt 0:02:29]} a4 {[%emt 0:04:10]} 27. Re3 {[%emt 0:03:34]} Rc8 {[%emt 0:10:19] The position is equal.} 28. h4 {[%emt 0:01:59]} Kf8 {[%emt 0:01:41]} 29. Re4 {[%emt 0:08:52]} Kg8 {[%emt 0:06:51] Not much happened in this game.   Weighted Error Value: White=0.04 (flawless) /Black=0.04 (flawless) .  Mistake:       	---       	Black=1      OK:         	White=11    	Black=8      Best:        	White=1     	Black=3} (29... Re8 $11) 1/2-1/2

[Event "III Menorca Open-A 2024"]
[Site "Ciutadella Menorca"]
[Date "2024.04.03"]
[Round "3.6"]
[White "Seemann, Jakub"]
[Black "Aryan Chopra"]
[Result "1/2-1/2"]
[ECO "B51"]
[WhiteElo "2465"]
[BlackElo "2630"]
[Annotator "TA"]
[PlyCount "99"]
[EventDate "2024.04.02"]
[EventType "swiss"]
[EventCountry "ESP"]
[SourceTitle "playchess.com"]
[Source "ChessBase"]
[SourceQuality "1"]
[TimeControl "5400+30"]

{[%evp 9,99,8,29,12,14,0,22,0,0,10,9,0,8,19,9,0,27,7,20,0,29,29,31,38,35,14,27,31,25,0,47,0,0,0,7,0,18,8,33,33,24,21,20,14,13,-28,31,-2,-12,-40,-18,-51,-64,-58,23,13,18,16,0,0,15,20,24,0,56,59,50,48,81,0,20,5,40,0,0,0,29,41,25,20,39,38,35,32,22,20,23,25,20,0,27,27]} 1. e4 {[%emt 0:01:47]} c5 {[%emt 0:00:04]} 2. Nf3 {[%emt 0:00:11]} d6 {[%emt 0:00:05]} 3. Bb5+ {[%emt 0:00:04]} Nd7 {[%emt 0:00:19]} 4. O-O {[%emt 0:00:14]} a6 {[%emt 0:00:11]} 5. Bd3 {[%emt 0:00:06]} Ngf6 {[%emt 0:00:11]} 6. Re1 {[%emt 0:00:06]} e6 {[%emt 0:00:11]} 7. Bf1 {[%emt 0:00:06]} b6 {[%emt 0:01:01]} 8. d4 {[%emt 0:00:25] The position is equal.} cxd4 {[%emt 0:00:12]} 9. Nxd4 {[%emt 0:00:06]} Bb7 {[%emt 0:00:10]} 10. f3 {[%emt 0:00:34]} Be7 {[%emt 0:01:01]} 11. c4 {[%emt 0:00:12]} O-O {[%emt 0:01:12]} 12. Nc3 {[%emt 0:00:35]} Rc8 {[%emt 0:02:28]} 13. Qd2 {[%emt 0:01:02]} Qc7 {[%emt 0:02:47]} (13... Re8 $5) 14. b3 {[%emt 0:00:15]} Ne5 {[%emt 0:05:37]} (14... b5 $5) 15. Bb2 {[%emt 0:03:33]} Rfd8 {[%emt 0:00:07]} 16. Rac1 {[%emt 0:06:55]} Qb8 {[%emt 0:11:01]} 17. Kh1 {[%emt 0:04:30]} Nfd7 {[%emt 0:03:04]} 18. f4 {[%emt 0:06:36]} Nc6 {[%emt 0:01:53][%cal Be5c6,Bc6e7,Be7g6][%mdl 32]} 19. Nc2 {[%emt 0:01:19][%cal Bd4c2,Bc2e3,Be3g4,Bg4f2,Bf2d3][%mdl 32]} Bf6 {[%emt 0:14:16]} (19... Bh4 $11) 20. b4 {[%emt 0:04:22]} (20. Ne3 $14 {deserves consideration.}) 20... Ne7 $11 {[%emt 0:06:45]} 21. Ne3 {[%emt 0:05:31]} Ng6 {[%emt 0:00:48]} 22. Ng4 {[%emt 0:02:33]} Bh4 {[%emt 0:03:09]} 23. Nf2 {[%emt 0:07:39]} h6 {[%emt 0:09:10]} 24. Rcd1 {[%emt 0:15:04]} Be7 {[%emt 0:03:01]} 25. a3 {[%emt 0:02:22]} Nf6 {[%emt 0:03:31]} 26. Qe3 {[%emt 0:00:51][%cal Oh1g1]} Bc6 $1 {[%emt 0:04:30]} 27. Nd3 {[%emt 0:11:11]} Bd7 {[%emt 0:05:22]} (27... b5 $11) 28. e5 {[%emt 0:09:01]} Ne8 {[%emt 0:01:35]} 29. f5 {[%emt 0:00:32]} Bg5 {[%emt 0:06:14]} 30. Qf2 {[%emt 0:02:15]} exf5 {[%emt 0:01:54]} (30... Nxe5 31. fxe6 Bxe6 32. Nxe5 dxe5 33. c5) 31. Nd5 {[%emt 0:00:47]} Be6 {[%emt 0:05:34]} (31... Ba4 32. Qxf5 Nh4 33. Qg4 Bxd1 34. Qxd1 Rxc4 35. Nf2 $11) (31... Rxc4 $15 32. Nxb6 (32. Qxb6 Ba4 $17) 32... Bh4 33. Nxd7 Bxf2 34. Nxb8 Bxe1 35. Nxe1 Rf4) 32. Nxb6 {[%emt 0:02:34]} ({Of course not} 32. Qxb6 Rxc4 33. Qxb8 Rxb8 $17) 32... Rc6 {[%emt 0:00:05]} 33. c5 $36 {[%emt 0:00:38][%mdl 2048] White has some pressure.} dxc5 {[%emt 0:01:32]} 34. bxc5 {[%emt 0:00:04]} a5 {[%emt 0:02:18] Inhibits Nb4.} 35. Bc3 {[%emt 0:00:01]} Be7 {[%emt 0:02:41][%cal Od8d3]} 36. Rb1 {[%emt 0:05:07]} (36. Qf3 $5 Rc7 37. Rb1 $11 (37. Bxa5 Bxc5 38. Na4 Bxa3 $14)) 36... Rxd3 {[%emt 0:02:59]} 37. Bxd3 $14 {[%emt 0:00:16][%cal Oc3d4] Black must now prevent Bd4!} Bxc5 {[%emt 0:00:06]} 38. Bd4 {[%emt 0:00:16]} Nxe5 {[%emt 0:00:47] [#]} 39. Be2 {[%emt 0:04:49] White is more active.} (39. Rxe5 $2 {too greedy.} Qxe5 (39... Bxa3 $2 40. Rxa5 Qc7 41. Ra8 $18) 40. Bxe5 Bxf2 $19) ({Better is} 39. Nd7 $1 $16 Nxd3 40. Nxb8 Nxf2+ 41. Bxf2) 39... Bxd4 {[%emt 0:01:32]} 40. Qxd4 {[%emt 0:00:05][%cal Ob6c4] And now Nc4! would win.} Qc7 {[%emt 0:00:34]} (40... Ng4 {is interesting.} 41. Bxg4 fxg4 42. Nd5 Qd6) 41. Nd5 {[%emt 0:01:40]} (41. Na8 $5 Qd6 $8 42. Qxd6 Nxd6 43. Rb6 Rxb6 44. Nxb6 $16) 41... Bxd5 {[%emt 0:00:22]} 42. Qxd5 {[%emt 0:00:03]} Nf6 {[%emt 0:00:10] Inhibits Bh5. Excellent horsemanship.} 43. Qb5 {[%emt 0:01:59]} Ne4 {[%emt 0:01:00] [#] aiming for ...Kh7.} 44. Qb8+ {[%emt 0:00:25]} Qxb8 {[%emt 0:00:10]} 45. Rxb8+ {[%emt 0:00:01]} Kh7 {[%emt 0:00:00]} 46. Rb5 {[%emt 0:00:28][%csl LRa5,LRe5]} f6 {[%emt 0:00:09]} 47. Rxa5 {[%emt 0:00:32]} Rc2 {[%emt 0:00:28]} 48. Kg1 {[%emt 0:00:46]} Ra2 {[%emt 0:01:01]} 49. Ba6 {[%emt 0:01:48]} Nd2 {[%emt 0:00:47]} 50. Bb7 {[%emt 0:02:11] Weighted Error Value: White=0.14 (very precise) /Black=0.13 (very precise) .  Mistake:       	White=2     	Black=4      Inaccurate:     	White=5     	Black=6      OK:         	White=17    	Black=16     Best:        	White=1     	Black=3      Strong:       	---       	Black=1} 1/2-1/2

[Event "III Menorca Open-A 2024"]
[Site "Ciutadella Menorca"]
[Date "2024.04.03"]
[Round "3.7"]
[White "Dardha, Daniel"]
[Black "Kosakowski, Jakub"]
[Result "1-0"]
[ECO "A04"]
[WhiteElo "2628"]
[BlackElo "2482"]
[Annotator "TA"]
[PlyCount "61"]
[EventDate "2024.04.02"]
[EventType "swiss"]
[EventCountry "ESP"]
[SourceTitle "playchess.com"]
[Source "ChessBase"]
[SourceQuality "1"]
[TimeControl "5400+30"]

{[%evp 9,61,12,19,11,12,4,29,14,22,22,25,16,22,21,22,38,33,0,0,0,0,0,0,0,78,77,77,87,68,68,68,75,68,68,68,68,68,68,204,216,216,209,216,225,203,206,184,184,246,246,459,464,455,422]} 1. Nf3 {[%emt 0:03:43]} Nf6 {[%emt 0:00:39]} 2. g3 {[%emt 0:00:10]} c5 {[%emt 0:00:47]} 3. Bg2 {[%emt 0:01:19]} Nc6 {[%emt 0:00:19]} 4. O-O {[%emt 0:03:41]} e5 {[%emt 0:01:26]} 5. e4 {[%emt 0:00:32]} Be7 {[%emt 0:01:57][%cal Od7d5]} 6. Nc3 {[%emt 0:04:15]} d6 {[%emt 0:08:12]} 7. d3 {[%emt 0:00:21]} h6 {[%emt 0:11:59]} 8. Nd2 {[%emt 0:01:54][%cal Bf3d2,Bd2c4,Bc4e3][%mdl 32] White has an edge.} Rb8 {[%emt 0:03:10]} 9. Nc4 {[%emt 0:05:56]} b5 {[%emt 0:05:59]} 10. Ne3 {[%emt 0:00:27]} O-O {[%emt 0:07:30]} 11. f4 {[%emt 0:05:25]} b4 {[%emt 0:09:59]} 12. Ncd5 {[%emt 0:09:24]} Nxd5 {[%emt 0:01:34]} 13. exd5 {[%emt 0:02:14]} exf4 $1 {[%emt 0:02:16]} 14. dxc6 {[%emt 0:00:07]} fxe3 {[%emt 0:00:08]} 15. Bxe3 {[%emt 0:00:04]} Be6 {[%emt 0:02:33]} 16. Qh5 {[%emt 0:13:09]} Bg5 {[%emt 0:08:51]} (16... d5 $11) 17. Bxg5 $1 $16 {[%emt 0:12:21]} Qxg5 {[%emt 0:01:03]} 18. Qxg5 {[%emt 0:00:02]} hxg5 {[%emt 0:00:12]} 19. a3 {[%emt 0:00:08]} Rfc8 {[%emt 0:18:16]} 20. axb4 {[%emt 0:01:36]} cxb4 {[%emt 0:00:08]} 21. Rxa7 {[%emt 0:04:12] Hoping for c7.} d5 $1 {[%emt 0:00:33][%cal Bd6d5,Bd5c4][%mdl 32]} 22. Ra6 {[%emt 0:09:37] White has more active pieces.} Rc7 {[%emt 0:00:32]} 23. c3 $36 {[%emt 0:00:31][%mdl 2048] White is more active.} Rbc8 {[%emt 0:06:32] This move loses the game for Black.} (23... bxc3 $14 24. bxc3 Rb3) 24. c4 $1 $18 {[%emt 0:07:15]} (24. cxb4 Rxc6 25. Rxc6 Rxc6 $11) 24... dxc4 {[%emt 0:02:45] [#]} 25. d4 {[%emt 0:00:04] aiming for d5.} Rd8 {[%emt 0:05:02] [#]} 26. d5 {[%emt 0:00:30][%mdl 512]} Rxd5 {[%emt 0:00:30]} (26... Bxd5 $2 27. Rd1 $18) 27. Bxd5 {[%emt 0:01:59]} Bxd5 {[%emt 0:00:02]} 28. Rf5 {[%emt 0:06:05]} Be4 {[%emt 0:01:04]} (28... Bxc6 $142 29. Rc5 (29. Rxg5 Be4 $11) 29... Bb7 30. Rxc7 Bxa6) 29. Rc5 {[%emt 0:00:55]} Kh7 $2 {[%emt 0:00:31]} (29... c3 30. bxc3 (30. Rxg5 $2 {too greedy.} cxb2 31. Kf2 b1=Q $19) 30... bxc3 31. Rxc3 Kf8) 30. Kf2 {[%emt 0:02:19]} ({Stronger than} 30. Rxc4 Bd3 31. b3 Bxc4 32. bxc4 b3 $11) 30... f5 {[%emt 0:00:29]} 31. Ke3 {[%emt 0:01:00] Weighted Error Value: White=0.02 (flawless) /Black=0.29 (precise) .  Mistake:       	---       	Black=4      Inaccurate:     	White=1     	---        OK:         	White=13    	Black=9      Best:        	White=2     	---        Strong:       	White=2     	Black=2      Brilliant:      	White=1     	---} ({Not} 31. Rxc4 Bd3 $18) 1-0

[Event "III Menorca Open-A 2024"]
[Site "Ciutadella Menorca"]
[Date "2024.04.03"]
[Round "3.8"]
[White "Agmanov, Zhandos"]
[Black "Chigaev, Maksim"]
[Result "1/2-1/2"]
[ECO "C88"]
[WhiteElo "2458"]
[BlackElo "2617"]
[Annotator "TA"]
[PlyCount "42"]
[EventDate "2024.04.02"]
[EventType "swiss"]
[EventCountry "ESP"]
[SourceTitle "playchess.com"]
[Source "ChessBase"]
[SourceQuality "1"]
[TimeControl "5400+30"]

{[%evp 21,42,18,26,23,29,28,52,13,15,23,0,0,0,0,0,0,0,0,0,0,0,0,8]} 1. e4 {[%emt 0:08:31]} e5 {[%emt 0:00:08]} 2. Nf3 {[%emt 0:00:17]} Nc6 {[%emt 0:00:07]} 3. Bb5 {[%emt 0:00:12]} a6 {[%emt 0:00:05]} 4. Ba4 {[%emt 0:00:04]} Nf6 {[%emt 0:00:05]} 5. O-O {[%emt 0:00:08]} Be7 {[%emt 0:00:03]} 6. Re1 {[%emt 0:00:35]} b5 {[%emt 0:00:06]} 7. Bb3 {[%emt 0:00:04]} O-O {[%emt 0:00:47]} 8. a4 {[%emt 0:00:12]} Rb8 {[%emt 0:00:05]} 9. axb5 {[%emt 0:02:09]} axb5 {[%emt 0:00:38]} 10. c3 {[%emt 0:00:54]} d6 {[%emt 0:00:34][%cal Bd7d6,Bd6d5][%mdl 32]} 11. d4 {[%emt 0:04:43]} exd4 {[%emt 0:00:26]} 12. cxd4 {[%emt 0:00:48]} d5 {[%emt 0:01:42]} 13. e5 {[%emt 0:04:50]} Ne4 {[%emt 0:00:05]} 14. Nbd2 {[%emt 0:16:59] White is slightly better.} Bf5 {[%emt 0:04:58]} 15. Bc2 {[%emt 0:01:00][%cal Rd2e4]} Nb4 {[%emt 0:02:50][%cal Oe4f2] [#] ...Nxf2! would now be deadly.} 16. Bb1 {[%emt 0:03:20][%cal Rd2e4] The position is equal.} Ra8 {[%emt 0:00:06]} 17. Ra3 {[%emt 0:05:24][%cal Rd2e4]} Rxa3 {[%emt 0:02:29]} 18. bxa3 {[%emt 0:00:08]} Nc3 {[%emt 0:00:04][%csl LRb1,LRd1]} 19. Qb3 {[%emt 0:00:06]} Nxb1 {[%emt 0:00:07]} 20. axb4 {[%emt 0:01:20]} Nxd2 {[%emt 0:00:05]} 21. Bxd2 {[%emt 0:00:44]} Be4 {[%emt 0:03:06] Weighted Error Value: White=0.07 (flawless) /Black=0.00 (flawless) .  Inaccurate:     	White=1     	---        OK:         	White=5     	Black=8} 1/2-1/2

[Event "III Menorca Open-A 2024"]
[Site "Ciutadella Menorca"]
[Date "2024.04.03"]
[Round "3.9"]
[White "Karthik Venkataraman"]
[Black "Macias Pino, Diego"]
[Result "1/2-1/2"]
[ECO "C79"]
[WhiteElo "2609"]
[BlackElo "2478"]
[Annotator "TA"]
[PlyCount "33"]
[EventDate "2024.04.02"]
[EventType "swiss"]
[EventCountry "ESP"]
[SourceTitle "playchess.com"]
[Source "ChessBase"]
[SourceQuality "1"]
[TimeControl "5400+30"]

{[%evp 10,33,36,0,0,0,0,-2,0,-4,-10,0,-7,0,0,-17,-16,-25,-25,-43,-25,-28,-28,-65,-50,-41]} 1. e4 {[%emt 0:01:15]} e5 {[%emt 0:00:15]} 2. Nf3 {[%emt 0:00:12]} Nc6 {[%emt 0:00:04]} 3. Bb5 {[%emt 0:00:12]} Nf6 {[%emt 0:00:06]} 4. d3 {[%emt 0:01:49]} d6 {[%emt 0:00:22]} 5. O-O {[%emt 0:01:09]} a6 {[%emt 0:00:14]} 6. Ba4 {[%emt 0:00:36]} b5 {[%emt 0:00:21]} 7. Bb3 {[%emt 0:00:12]} Na5 {[%emt 0:00:04]} 8. Bd2 {[%emt 0:02:53]} Nxb3 {[%emt 0:01:52] The position is equal.} 9. axb3 {[%emt 0:00:07]} Bb7 {[%emt 0:01:14]} 10. b4 {[%emt 0:13:52]} Be7 {[%emt 0:04:36]} 11. Re1 {[%emt 0:08:28]} O-O {[%emt 0:01:40]} 12. Nc3 {[%emt 0:00:02]} Re8 {[%emt 0:03:35]} 13. h3 {[%emt 0:04:16]} h6 {[%emt 0:13:29]} 14. Re2 {[%emt 0:14:54]} Bf8 {[%emt 0:02:00]} 15. Qe1 {[%emt 0:04:46]} Rc8 {[%emt 0:00:50]} 16. Nh2 {[%emt 0:00:44]} c5 {[%emt 0:12:56]} 17. bxc5 {[%emt 0:02:35] Weighted Error Value: White=0.13 (very precise) /Black=0.03 (flawless) .  Inaccurate:     	White=1     	---        OK:         	White=3     	Black=7      Best:        	White=1     	---} 1/2-1/2

[Event "III Menorca Open-A 2024"]
[Site "Ciutadella Menorca"]
[Date "2024.04.03"]
[Round "3.10"]
[White "Albornoz Cabrera, Carlos Daniel"]
[Black "Castellanos Rodriguez, Renier"]
[Result "1/2-1/2"]
[ECO "B53"]
[WhiteElo "2603"]
[BlackElo "2467"]
[Annotator "TA"]
[PlyCount "91"]
[EventDate "2024.04.02"]
[EventType "swiss"]
[EventCountry "ESP"]
[SourceTitle "playchess.com"]
[Source "ChessBase"]
[SourceQuality "1"]
[TimeControl "5400+30"]

{[%evp 9,91,0,2,0,0,-6,0,-12,-12,0,12,0,-9,0,0,0,0,0,0,0,0,0,10,0,12,2,0,0,14,9,16,12,10,15,18,9,24,0,0,0,0,0,0,0,0,0,0,0,0,0,0,0,0,0,0,0,0,0,0,0,0,0,0,0,0,0,0,0,0,0,0,0,0,0,0,0,0,0,0,0,0,0,-6,-12]} 1. e4 {[%emt 0:00:02]} c5 {[%emt 0:00:07]} 2. Nf3 {[%emt 0:00:04]} d6 {[%emt 0:00:03]} 3. d4 {[%emt 0:00:07]} cxd4 {[%emt 0:00:06]} 4. Qxd4 {[%emt 0:00:04]} Nc6 {[%emt 0:00:55]} 5. Qe3 {[%emt 0:00:04]} g6 {[%emt 0:02:13]} 6. Bc4 {[%emt 0:00:51]} Bg7 {[%emt 0:00:41]} 7. Nc3 {[%emt 0:00:38]} Nf6 {[%emt 0:00:39]} 8. h3 {[%emt 0:00:06]} O-O {[%emt 0:01:05]} 9. O-O {[%emt 0:00:03]} Na5 {[%emt 0:02:56]} 10. Bb3 {[%emt 0:06:11]} b6 {[%emt 0:03:38]} 11. Rd1 {[%emt 0:01:38]} Qc7 {[%emt 0:05:00]} 12. Qe2 {[%emt 0:11:48]} Bb7 {[%emt 0:01:09]} 13. Nd5 {[%emt 0:04:45]} Nxd5 {[%emt 0:01:33]} 14. Bxd5 {[%emt 0:01:55]} Rac8 {[%emt 0:02:50]} 15. c3 {[%emt 0:00:28]} Nc4 {[%emt 0:00:51]} 16. Nd4 {[%emt 0:09:33]} a6 {[%emt 0:02:04] Prevents Nb5.} 17. a4 {[%emt 0:02:14]} Rfe8 {[%emt 0:03:58]} 18. Nc2 {[%emt 0:05:37]} Red8 {[%emt 0:09:12]} 19. Ne3 {[%emt 0:01:37]} Nxe3 {[%emt 0:03:43]} 20. Bxe3 {[%emt 0:00:17]} e6 {[%emt 0:01:20]} 21. Bxb7 {[%emt 0:01:09]} Qxb7 {[%emt 0:00:04]} 22. Bd4 {[%emt 0:03:22]} b5 {[%emt 0:07:57]} 23. Bxg7 {[%emt 0:03:16]} Kxg7 {[%emt 0:00:31] The position is equal.} 24. Rd4 {[%emt 0:01:38]} Rc4 {[%emt 0:03:50]} 25. Qd2 {[%emt 0:02:33]} Rdc8 {[%emt 0:03:48]} 26. axb5 {[%emt 0:05:05]} axb5 {[%emt 0:01:20]} 27. Rxd6 {[%emt 0:00:44]} Qxe4 {[%emt 0:03:29]} 28. Rd7 {[%emt 0:05:49]} R8c7 {[%emt 0:07:47]} 29. Rd8 {[%emt 0:08:49] [#] Against Rxd7. Qd6 would now be deadly.} Rc8 {[%emt 0:00:18]} 30. Rxc8 {[%emt 0:03:00]} Rxc8 $11 {[%emt 0:00:15][%mdl 4096] Endgame. KQR-KQR} 31. Re1 {[%emt 0:00:17]} Qc4 {[%emt 0:01:54]} 32. Rd1 {[%emt 0:00:41]} Rc5 {[%emt 0:01:03]} 33. Qd4+ {[%emt 0:00:45]} e5 {[%emt 0:01:19]} 34. Qd6 {[%emt 0:03:26]} b4 {[%emt 0:03:46]} 35. Rd3 {[%emt 0:02:05][%cal Ob2b3]} bxc3 {[%emt 0:05:16]} 36. Rxc3 {[%emt 0:00:33]} Rd5 {[%emt 0:00:04]} 37. Rxc4 {[%emt 0:01:59]} Rxd6 {[%emt 0:00:04] KR-KR} 38. Rc1 {[%emt 0:00:19] Prevents Rd1+} Rb6 {[%emt 0:01:58]} 39. Rb1 {[%emt 0:00:16]} Kf6 {[%emt 0:00:23]} 40. Kf1 {[%emt 0:00:17]} Ke6 {[%emt 0:00:27]} 41. Ke2 {[%emt 0:00:19]} f5 {[%emt 0:00:28]} 42. Kd3 {[%emt 0:04:08]} Kd5 {[%emt 0:00:15]} 43. Rd1 {[%emt 0:03:16]} e4+ {[%emt 0:04:24]} (43... Rxb2 $2 {too greedy.} 44. Kc3+ Ke4 45. Kxb2 $18) 44. Kc3+ {[%emt 0:00:04]} Ke5 {[%emt 0:00:21]} 45. Rd7 {[%emt 0:02:46]} Rc6+ {[%emt 0:00:48]} 46. Kd2 {[%emt 0:00:14] A balanced but interesting game.   Weighted Error Value: White=0.02 (flawless) /Black=0.02 (flawless) .  OK:         	White=19    	Black=17     Best:        	White=1     	---} 1/2-1/2

[Event "III Menorca Open-A 2024"]
[Site "Ciutadella Menorca"]
[Date "2024.04.03"]
[Round "3.11"]
[White "Idani, Pouya"]
[Black "Zhu, Jiner"]
[Result "1-0"]
[ECO "B31"]
[WhiteElo "2609"]
[BlackElo "2463"]
[Annotator "TA"]
[PlyCount "89"]
[EventDate "2024.04.02"]
[EventType "swiss"]
[EventCountry "ESP"]
[SourceTitle "playchess.com"]
[Source "ChessBase"]
[SourceQuality "1"]
[TimeControl "5400+30"]

{[%evp 13,89,0,0,0,0,0,60,64,63,61,57,58,90,84,90,0,0,-14,-6,-14,-12,-12,-16,-14,-8,-7,-8,-11,-12,-68,-30,-16,-4,-10,0,-13,-5,-3,0,0,0,0,0,0,0,0,0,0,0,0,0,0,8,8,7,6,8,8,100,100,79,89,329,277,698,664,1354,1295,1344,1537,5181,5026,29974,29975,29980,29981,29985,29986]} 1. e4 {[%emt 0:02:57]} c5 {[%emt 0:00:09]} 2. Nf3 {[%emt 0:00:05]} Nc6 {[%emt 0:00:05]} 3. Bb5 {[%emt 0:00:07]} g6 {[%emt 0:00:09]} 4. O-O {[%emt 0:00:29]} Bg7 {[%emt 0:00:06]} 5. c3 {[%emt 0:02:18]} e5 {[%emt 0:00:15]} 6. d3 {[%emt 0:00:54]} Nge7 {[%emt 0:00:57]} 7. Be3 {[%emt 0:00:06]} d6 {[%emt 0:15:10]} 8. d4 {[%emt 0:00:23]} exd4 {[%emt 0:00:25]} 9. cxd4 {[%emt 0:00:04]} a6 {[%emt 0:06:20]} (9... O-O $11) 10. Bxc6+ $1 $14 {[%emt 0:04:36] White is slightly better.} Nxc6 {[%emt 0:00:46]} 11. dxc5 {[%emt 0:11:04]} dxc5 {[%emt 0:03:41] [#] ...Qxd1 would now be deadly.} 12. Nc3 {[%emt 0:06:33]} Nd4 {[%emt 0:05:29]} 13. Nd5 {[%emt 0:02:25][%cal Rf3d4]} Bg4 {[%emt 0:05:16]} 14. Bxd4 {[%emt 0:01:21]} (14. Rc1 $16) 14... Bxd4 $11 {[%emt 0:00:12]} 15. h3 {[%emt 0:00:05]} Bxf3 {[%emt 0:00:16]} 16. Qxf3 {[%emt 0:00:05][%cal Ob2b4]} O-O {[%emt 0:00:09]} 17. Rad1 {[%emt 0:00:43]} Qd6 {[%emt 0:02:03]} 18. b4 {[%emt 0:01:26]} b6 {[%emt 0:00:15]} 19. Rfe1 {[%emt 0:04:52]} Rad8 {[%emt 0:01:54]} 20. bxc5 {[%emt 0:08:23]} bxc5 {[%emt 0:02:56]} 21. Qf4 {[%emt 0:07:00]} (21. Rd2 $11) 21... Qxf4 {[%emt 0:02:12]} (21... f5 {is interesting.} 22. Qc1 fxe4 23. Ne3 h5) 22. Nxf4 {[%emt 0:00:04]} Rb8 {[%emt 0:06:27]} 23. Re2 {[%emt 0:01:48]} a5 {[%emt 0:04:08]} 24. Kf1 {[%emt 0:07:01]} a4 {[%emt 0:05:47]} 25. Rc2 {[%emt 0:04:58]} Rb2 {[%emt 0:02:46]} 26. Rxb2 {[%emt 0:02:29]} Bxb2 {[%emt 0:00:09][%mdl 4096] Endgame. KRB-KRN} 27. Ke2 {[%emt 0:10:44]} Re8 {[%emt 0:04:07]} 28. Kd3 {[%emt 0:00:43]} c4+ {[%emt 0:01:23]} 29. Kc2 {[%emt 0:00:04]} Rxe4 {[%emt 0:06:36]} 30. Kxb2 {[%emt 0:00:06] Black must now prevent g3.} Rxf4 {[%emt 0:00:03] KR-KR} 31. f3 {[%emt 0:00:46]} Kg7 {[%emt 0:01:02]} 32. Kc3 {[%emt 0:00:35]} Kf6 {[%emt 0:00:56]} 33. Rd5 {[%emt 0:02:39]} h5 {[%emt 0:05:35]} 34. Ra5 {[%emt 0:02:05]} Rf5 $1 {[%emt 0:00:47]} 35. Rxa4 {[%emt 0:00:29]} Re5 {[%emt 0:01:01] [#]} (35... Rg5 $11) 36. Rb4 $1 $16 {[%emt 0:01:01]} ({Don't do} 36. Rxc4 Re2 $14) 36... Re3+ {[%emt 0:03:23]} 37. Kxc4 {[%emt 0:00:09] And now a4 would win.} Re2 $2 {[%emt 0:00:03] Loses the game.} (37... Ra3 $16) 38. a4 $18 {[%emt 0:00:04][%cal Ba2a4,Ba4a5,Ba5a6,Ba6a7][%mdl 32] Strongly threatening Kb5.} Rxg2 $2 {[%emt 0:00:05]} (38... Ke7 39. a5 Kd6) 39. a5 {[%emt 0:01:17] a6 is the strong threat.} Ra2 {[%emt 0:00:08]} 40. Kb5 {[%emt 0:00:15]} Ke6 {[%emt 0:08:54]} 41. a6 {[%emt 0:01:29]} Kd7 {[%emt 0:05:09]} 42. Kb6 {[%emt 0:00:42]} Kc8 {[%emt 0:00:08]} 43. a7 {[%emt 0:00:05] White mates.} g5 {[%emt 0:00:11]} 44. Rb5 {[%emt 0:00:07]} f6 {[%emt 0:00:05]} 45. Rc5+ {[%emt 0:00:07] Weighted Error Value: White=0.07 (flawless) /Black=0.55.  Loses game:     	---       	Black=1      Mistake:       	White=2     	Black=3      Inaccurate:     	---       	Black=3      OK:         	White=12    	Black=12     Best:        	White=4     	Black=2      Strong:       	White=2     	Black=1} 1-0